fUST/lending_fUST_20250223
["ID","MTS","AMOUNT","RATE_DAILY","PERIOD"]
[354162344,1740309041388,-500.0,0.00013863,2]
[354162345,1740309041397,-500.0,0.00013863,2]
[354162346,1740309041407,-500.0,0.00013863,2]
[354162347,1740309041416,-851.4,0.00013863,2]
[354162348,1740309041425,-420.0,0.000139,2]
[354162349,1740309041435,-12332.37625363,0.00013905,2]
[354162350,1740309041444,-151.262012,0.00013912,2]
[354162351,1740309041452,-306.50505606,0.00013942,2]
[354162352,1740309041461,-232.30470522,0.00013945,2]
[354162353,1740309041472,-151.0,0.00013945,2]
[354162354,1740309041481,-500.0,0.00013945,2]
[354162355,1740309041491,-204.055066,0.00013945,2]
[354162356,1740309041500,-164.54937307,0.00013945,5]
[354162357,1740309041508,-500.0,0.00013945,2]
[354162358,1740309041605,-500.0,0.00013945,2]
[354162359,1740309041615,-500.0,0.00013945,2]
[354162360,1740309041624,-4868.59,0.00013945,2]
[354162361,1740309041634,-2505.59,0.00013945,2]
[354162362,1740309041643,-272.48,0.00013945,2]
[354162363,1740309041652,-500.0,0.00013945,2]
[354162364,1740309041661,-601.39,0.00013945,2]
[354162365,1740309041673,-1724.61,0.00013945,2]
[354162366,1740309041682,-500.0,0.00013945,2]
[354162367,1740309041692,-827.09,0.00013945,2]
[354162368,1740309041702,-306.5037145,0.00013945,2]
[354162369,1740309041714,-500.0,0.00013945,2]
[354162370,1740309041724,-500.0,0.00013945,2]
[354162371,1740309041733,-851.4,0.00013945,2]
[354162372,1740309041745,-500.0,0.00014027,2]
[354162373,1740309041755,-500.0,0.00014027,2]
[354162374,1740309041763,-500.0,0.00014027,2]
[354162375,1740309041772,-500.0,0.00014027,2]
[354162376,1740309041781,-4868.59,0.00014027,2]
[354162377,1740309041790,-2505.59,0.00014027,2]
[354162378,1740309041799,-500.0,0.00014027,2]
[354162379,1740309041808,-601.39,0.00014027,2]
[354162380,1740309041817,-1724.61,0.00014027,2]
[354162381,1740309041826,-500.0,0.00014027,2]
[354162382,1740309041835,-827.09,0.00014027,2]
[354162383,1740309041845,-500.0,0.00014027,2]
[354162384,1740309041854,-500.0,0.00014027,2]
[354162385,1740309041863,-851.4,0.00014027,2]
[354162386,1740309041872,-306.50505606,0.00014056,2]
[354162387,1740309041881,-396.0,0.00014061,2]
[354162388,1740309041891,-151.0,0.00014087,2]
[354162389,1740309041900,-372.2704841,0.00014109,2]
[354162390,1740309041909,-500.0,0.00014109,2]
[354162391,1740309041919,-500.0,0.00014109,2]
[354162392,1740309041928,-500.0,0.00014109,2]
[354162393,1740309041938,-4868.59,0.00014109,2]
[354162394,1740309041948,-2505.59,0.00014109,2]
[354162395,1740309041958,-500.0,0.00014109,2]
[354162396,1740309041968,-601.39,0.00014109,2]
[354162397,1740309041977,-1724.61,0.00014109,2]
[354162398,1740309041987,-500.0,0.00014109,2]
[354162399,1740309041996,-827.09,0.00014109,2]
[354162400,1740309042006,-500.0,0.00014109,2]
[354162401,1740309042015,-500.0,0.00014109,2]
[354162402,1740309042024,-851.4,0.00014109,2]
[354162403,1740309042033,-500.0,0.00014119,2]
[354162404,1740309042042,-500.0,0.00014119,2]
[354162405,1740309042052,-395.15373968,0.00014164,2]
[354162415,1740309046549,-5000.0,0.00013561,2]
[354162416,1740309046559,-104.84626032,0.00014164,2]
[354162417,1740309046569,-306.50505606,0.00014171,2]
[354162418,1740309046578,-151.84229,0.00014191,2]
[354162419,1740309046587,-500.0,0.00014191,2]
[354162420,1740309046596,-500.0,0.00014191,2]
[354162421,1740309046606,-4868.59,0.00014191,2]
[354162422,1740309046615,-2505.59,0.00014191,2]
[354162423,1740309046625,-500.0,0.00014191,2]
[354162424,1740309046634,-601.39,0.00014191,2]
[354162425,1740309046643,-1724.61,0.00014191,2]
[354162426,1740309046652,-500.0,0.00014191,2]
[354162427,1740309046661,-827.09,0.00014191,2]
[354162428,1740309046674,-500.0,0.00014191,2]
[354162429,1740309046682,-500.0,0.00014191,2]
[354162430,1740309046692,-851.4,0.00014191,2]
[354162431,1740309046702,-827.2281443,0.00014208,2]
[354162432,1740309046714,-508.28951394,0.00014248,2]
[354162433,1740309046724,-500.0,0.00014248,2]
[354162434,1740309046735,-500.0,0.00014248,2]
[354162435,1740309046745,-500.0,0.00014252,2]
[354162436,1740309046754,-151.0,0.00014269,2]
[354162437,1740309046763,-500.0,0.00014273,2]
[354162438,1740309046773,-500.0,0.00014273,2]
[354162439,1740309046781,-4868.59,0.00014273,2]
[354162440,1740309046791,-591.16961708,0.00014273,2]
[354162443,1740310097436,264.440953,9.041e-05,2]
[354162480,1740310232384,-628.38707331,0.00012048,2]
[354162481,1740310232439,-4371.61292669,0.00012048,2]
[354162482,1740310232448,-5000.0,0.0001217,2]
[354162483,1740310232457,-300.0,0.00013056,2]
[354162484,1740310232467,-4988.50227895,0.00013057,2]
[354162485,1740310232476,-2245.96492556,0.000135,2]
[354162486,1740310232485,-209.75758409,0.00013598,2]
[354162487,1740310232494,-209.058772,0.00013598,2]
[354162488,1740310232503,-150.2950273,0.00013649,2]
[354162489,1740310232512,-500.0,0.00013698,2]
[354162490,1740310232522,-500.0,0.00013698,2]
[354162491,1740310232531,-500.0,0.00013698,2]
[354162492,1740310232541,-500.0,0.00013698,2]
[354162493,1740310232550,-500.0,0.00013698,2]
[354162494,1740310232559,-500.0,0.00013698,2]
[354162495,1740310232568,-500.0,0.00013698,2]
[354162496,1740310232578,-559.35445755,0.00013698,2]
[354162497,1740310232587,-500.0,0.00013698,2]
[354162498,1740310232596,-500.0,0.00013698,2]
[354162499,1740310232605,-500.0,0.00013698,2]
[354162500,1740310232614,-674.02,0.00013698,2]
[354162501,1740310232623,-500.0,0.00013698,2]
[354162502,1740310232632,-440.18140888,0.00013698,2]
[354162503,1740310232642,-3651.44,0.00013698,2]
[354162504,1740310232651,-500.0,0.00013698,2]
[354162505,1740310232660,-500.0,0.00013698,2]
[354162506,1740310232670,-500.0,0.00013698,2]
[354162507,1740310232679,-1958.96,0.00013698,2]
[354162508,1740310232687,-500.0,0.00013698,2]
[354162509,1740310232697,-426.00258884,0.00013698,2]
[354162554,1740310392125,360.0,0.00019,120]
[354162606,1740311432820,-5000.0,0.000119,2]
[354162607,1740311432830,-5000.0,0.0001202,2]
[354162608,1740311432839,-300.0,0.00013597,2]
[354162609,1740311432849,-209.75758409,0.00013598,2]
[354162610,1740311432858,-13279.54588923,0.00013678,2]
[354162611,1740311432868,-389.19253556,0.0001368,2]
[354162612,1740311432877,-500.0,0.00013697,2]
[354162613,1740311432887,-500.0,0.00013697,2]
[354162614,1740311432898,-636.13461265,0.00013697,2]
[354162615,1740311432908,-500.0,0.00013697,2]
[354162616,1740311432918,-500.0,0.00013697,2]
[354162617,1740311432927,-300.0,0.00013697,2]
[354162618,1740311432936,-989.44359555,0.00013697,5]
[354162619,1740311432946,-24051.37411695,0.00013698,5]
[354162620,1740311432955,-577.64796051,0.00013698,2]
[354162621,1740311432964,-501.27627951,0.00013698,2]
[354162622,1740311432973,-450.29929733,0.00013698,2]
[354162623,1740311432982,-501.59753312,0.00013698,2]
[354162624,1740311432992,-229.72704571,0.00013698,2]
[354162625,1740311433002,-416.82732555,0.00013698,2]
[354162626,1740311433011,-500.0,0.00013698,2]
[354162627,1740311433019,-500.0,0.00013698,2]
[354162628,1740311433029,-500.0,0.00013698,2]
[354162629,1740311433040,-500.0,0.00013698,2]
[354162630,1740311433049,-500.0,0.00013698,2]
[354162631,1740311433059,-294.28,0.00013698,2]
[354162632,1740311433068,-500.0,0.00013698,2]
[354162633,1740311433078,-500.0,0.00013698,2]
[354162634,1740311433087,-500.0,0.00013698,2]
[354162635,1740311433098,-500.0,0.00013698,2]
[354162636,1740311433107,-289.336,0.00013698,2]
[354162637,1740311433117,-500.0,0.00013698,2]
[354162638,1740311433127,-500.0,0.00013698,2]
[354162639,1740311433137,-500.0,0.00013698,2]
[354162640,1740311433147,-500.0,0.00013698,2]
[354162641,1740311433157,-500.0,0.00013698,2]
[354162642,1740311433167,-500.0,0.00013698,2]
[354162643,1740311433176,-500.0,0.00013698,2]
[354162644,1740311433186,-500.0,0.00013698,2]
[354162645,1740311433196,-500.0,0.00013698,2]
[354162646,1740311433206,-500.0,0.00013698,2]
[354162647,1740311433216,-500.0,0.00013698,2]
[354162648,1740311433226,-500.0,0.00013698,2]
[354162649,1740311433235,-500.0,0.00013698,2]
[354162650,1740311433244,-500.0,0.00013698,2]
[354162651,1740311433254,-500.0,0.00013698,2]
[354162652,1740311433264,-500.0,0.00013698,2]
[354162653,1740311433273,-500.0,0.00013698,2]
[354162654,1740311433283,-500.0,0.00013698,2]
[354162655,1740311433292,-411.76366975,0.00013698,2]
[354162656,1740311433302,-500.0,0.00013698,2]
[354162657,1740311433312,-500.0,0.00013698,2]
[354162658,1740311433321,-500.0,0.00013698,2]
[354162659,1740311433332,-500.0,0.00013698,2]
[354162660,1740311433341,-500.0,0.00013698,2]
[354162661,1740311433351,-500.0,0.00013698,2]
[354162662,1740311433361,-500.0,0.00013698,2]
[354162663,1740311433370,-275.509077,0.00013698,2]
[354162664,1740311433380,-500.0,0.00013698,2]
[354162665,1740311433389,-500.0,0.00013698,2]
[354162666,1740311433399,-500.0,0.00013698,2]
[354162667,1740311433409,-500.0,0.00013698,2]
[354162668,1740311433418,-500.0,0.00013698,2]
[354162669,1740311433428,-500.0,0.00013698,2]
[354162670,1740311433437,-500.0,0.00013698,2]
[354162671,1740311433447,-500.0,0.00013698,2]
[354162672,1740311433457,-500.0,0.00013698,2]
[354162673,1740311433467,-509.37171209,0.00013698,2]
[354162674,1740311433477,-500.0,0.00013698,2]
[354162675,1740311433486,-500.0,0.00013698,2]
[354162676,1740311433495,-500.0,0.00013698,2]
[354162677,1740311433506,-500.0,0.00013698,2]
[354162678,1740311433515,-500.0,0.00013698,2]
[354162679,1740311433524,-500.0,0.00013698,2]
[354162680,1740311433537,-500.0,0.00013698,2]
[354162681,1740311433548,-500.0,0.00013698,2]
[354162682,1740311433557,-151.0,0.00013698,2]
[354162683,1740311433567,-151.0,0.00013698,2]
[354162684,1740311433576,-151.0,0.00013698,2]
[354162685,1740311433586,-500.0,0.00013698,2]
[354162686,1740311433596,-500.0,0.00013698,2]
[354162687,1740311433605,-500.0,0.00013698,2]
[354162688,1740311433615,-151.69736,0.00013698,2]
[354162689,1740311433627,-500.0,0.00013698,2]
[354162690,1740311433637,-500.0,0.00013698,2]
[354162691,1740311433647,-500.0,0.00013698,2]
[354162692,1740311433656,-500.0,0.00013698,2]
[354162693,1740311433666,-500.0,0.00013698,2]
[354162694,1740311433676,-500.0,0.00013698,2]
[354162695,1740311433686,-500.0,0.00013698,2]
[354162696,1740311433697,-169.39098883,0.00013698,2]
[354162697,1740311433707,-500.0,0.00013698,2]
[354162698,1740311433716,-500.0,0.00013698,2]
[354162699,1740311433726,-151.0,0.00013698,2]
[354162700,1740311433735,-500.0,0.00013698,2]
[354162701,1740311433745,-500.0,0.00013698,2]
[354162702,1740311433756,-500.0,0.00013698,2]
[354162703,1740311433765,-509.77509971,0.00013698,2]
[354162704,1740311433775,-500.0,0.00013698,2]
[354162705,1740311433784,-697.04,0.00013698,2]
[354162706,1740311433793,-500.0,0.00013698,2]
[354162707,1740311433804,-500.0,0.00013698,2]
[354162708,1740311433813,-500.0,0.00013698,2]
[354162709,1740311433823,-500.0,0.00013698,2]
[354162710,1740311433833,-161.847331,0.00013698,2]
[354162711,1740311433843,-500.0,0.00013698,2]
[354162712,1740311433852,-500.0,0.00013698,2]
[354162713,1740311433862,-500.0,0.00013698,2]
[354162714,1740311433871,-500.0,0.00013698,2]
[354162715,1740311433880,-512.51765656,0.00013698,2]
[354162716,1740311433890,-561.51,0.00013698,2]
[354162717,1740311433899,-500.0,0.00013698,2]
[354162718,1740311433909,-500.0,0.00013698,2]
[354162719,1740311433918,-1251.12,0.00013698,2]
[354162720,1740311433928,-500.0,0.00013698,2]
[354162721,1740311433937,-500.0,0.00013698,2]
[354162722,1740311433948,-500.0,0.00013698,2]
[354162723,1740311433960,-500.0,0.00013698,2]
[354162724,1740311433969,-500.0,0.00013698,2]
[354162725,1740311433980,-500.0,0.00013698,2]
[354162726,1740311433989,-500.0,0.00013698,2]
[354162727,1740311434001,-500.0,0.00013698,2]
[354162728,1740311434010,-151.0,0.00013698,2]
[354162729,1740311434019,-151.0,0.00013698,2]
[354162730,1740311434030,-151.0,0.00013698,2]
[354162731,1740311434039,-151.0,0.00013698,2]
[354162732,1740311434048,-500.0,0.00013698,2]
[354162733,1740311434059,-500.0,0.00013698,2]
[354162734,1740311434068,-500.0,0.00013698,2]
[354162735,1740311434077,-500.0,0.00013698,2]
[354162736,1740311434087,-500.0,0.00013698,2]
[354162737,1740311434096,-500.0,0.00013698,2]
[354162738,1740311434105,-151.143185,0.00013698,2]
[354162739,1740311434115,-500.0,0.00013698,2]
[354162740,1740311434124,-500.0,0.00013698,2]
[354162741,1740311434134,-500.0,0.00013698,2]
[354162742,1740311434144,-151.0,0.00013698,2]
[354162743,1740311434153,-244.861442,0.00013698,2]
[354162744,1740311434163,-500.0,0.00013698,2]
[354162745,1740311434173,-500.0,0.00013698,2]
[354162746,1740311434183,-500.0,0.00013698,2]
[354162747,1740311434192,-500.0,0.00013698,2]
[354162748,1740311434202,-500.0,0.00013698,2]
[354162749,1740311434212,-500.0,0.00013698,2]
[354162750,1740311434222,-500.0,0.00013698,2]
[354162751,1740311434231,-500.0,0.00013698,2]
[354162752,1740311434241,-500.0,0.00013698,2]
[354162753,1740311434250,-524.96,0.00013698,2]
[354162754,1740311434260,-151.0,0.00013698,2]
[354162755,1740311434269,-587.40762583,0.00013698,2]
[354162756,1740311434278,-151.0,0.00013698,2]
[354162757,1740311434287,-151.0,0.00013698,2]
[354162758,1740311434297,-151.0,0.00013698,2]
[354162759,1740311434306,-500.0,0.00013698,2]
[354162760,1740311434316,-500.0,0.00013698,2]
[354162761,1740311434325,-500.0,0.00013698,2]
[354162762,1740311434335,-500.0,0.00013698,2]
[354162763,1740311434345,-500.0,0.00013698,2]
[354162764,1740311434354,-503.37252406,0.00013698,2]
[354162765,1740311434364,-500.0,0.00013698,2]
[354162766,1740311434373,-580.13981906,0.00013698,2]
[354162767,1740311434383,-500.0,0.00013698,2]
[354162768,1740311434392,-500.0,0.00013698,2]
[354162769,1740311434402,-503.43947758,0.00013698,2]
[354162770,1740311434411,-567.39939383,0.00013698,2]
[354162771,1740311434421,-500.0,0.00013698,2]
[354162772,1740311434430,-508.75,0.00013698,2]
[354162773,1740311434439,-3111.36,0.00013698,2]
[354162774,1740311434449,-500.0,0.00013698,2]
[354162775,1740311434459,-500.0,0.00013698,2]
[354162776,1740311434469,-1008.33,0.00013698,2]
[354162777,1740311434478,-500.0,0.00013698,2]
[354162778,1740311434488,-506.99557439,0.00013698,2]
[354162779,1740311434497,-500.0,0.00013698,2]
[354162780,1740311434507,-500.0,0.00013698,2]
[354162781,1740311434517,-500.0,0.00013698,2]
[354162782,1740311434526,-4480.12,0.00013698,2]
[354162783,1740311434541,-222.28889242,0.00013698,2]
[354162784,1740311434551,-500.0,0.00013698,2]
[354162785,1740311434561,-500.0,0.00013698,2]
[354162786,1740311434571,-500.0,0.00013698,2]
[354162787,1740311434580,-500.0,0.00013698,2]
[354162788,1740311434685,-500.0,0.00013698,2]
[354162789,1740311434698,-500.0,0.00013698,2]
[354162790,1740311434707,-500.0,0.00013698,2]
[354162791,1740311434717,-372.2704841,0.00013698,2]
[354162792,1740311434727,-500.0,0.00013698,2]
[354162793,1740311434736,-500.0,0.00013698,2]
[354162794,1740311434746,-151.0,0.00013698,2]
[354162795,1740311434755,-151.0,0.00013698,2]
[354162796,1740311434764,-151.0,0.00013698,2]
[354162797,1740311434774,-151.0,0.00013698,2]
[354162798,1740311434783,-604.73,0.00013698,2]
[354162799,1740311434794,-500.0,0.00013698,2]
[354162800,1740311434803,-1835.67,0.00013698,2]
[354162801,1740311434813,-500.0,0.00013698,2]
[354162802,1740311434822,-376.08965222,0.00013698,2]
[354162803,1740311434832,-500.0,0.00013698,2]
[354162804,1740311434842,-1150.91,0.00013698,2]
[354162805,1740311434851,-353.53714969,0.00013698,2]
[354162806,1740311434861,-500.0,0.00013698,2]
[354162807,1740311434870,-500.0,0.00013698,2]
[354162808,1740311434879,-263.311599,0.00013699,2]
[354162809,1740311434889,-177.416413,0.00013699,2]
[354162810,1740311434898,-500.0,0.00013699,2]
[354162811,1740311434908,-500.0,0.00013699,2]
[354162812,1740311434918,-500.0,0.00013699,2]
[354162813,1740311434927,-500.0,0.00013699,2]
[354162814,1740311434936,-458.0,0.00013699,2]
[354162815,1740311434946,-481.28240097,0.00013699,2]
[354162816,1740311434956,-237.75867133,0.00013704,2]
[354162817,1740311434966,-465.67951252,0.00013734,2]
[354162818,1740311434975,-500.0,0.0001378,2]
[354162819,1740311434985,-211.92,0.0001378,2]
[354162820,1740311434997,-487.45261309,0.0001378,2]
[354162821,1740311435007,-500.0,0.0001378,2]
[354162822,1740311435016,-500.0,0.0001378,2]
[354162823,1740311435025,-500.0,0.0001378,2]
[354162824,1740311435035,-504.05344191,0.0001378,2]
[354162825,1740311435045,-533.37,0.0001378,2]
[354162826,1740311435054,-500.0,0.0001378,2]
[354162827,1740311435064,-500.0,0.0001378,2]
[354162828,1740311435074,-500.0,0.0001378,2]
[354162829,1740311435083,-500.0,0.0001378,2]
[354162830,1740311435093,-500.0,0.0001378,2]
[354162831,1740311435102,-500.0,0.0001378,2]
[354162832,1740311435111,-500.0,0.0001378,2]
[354162833,1740311435121,-500.0,0.0001378,2]
[354162834,1740311435130,-503.845709,0.0001378,2]
[354162835,1740311435140,-500.0,0.0001378,2]
[354162836,1740311435149,-500.0,0.0001378,2]
[354162837,1740311435159,-500.0,0.0001378,2]
[354162838,1740311435168,-500.0,0.0001378,2]
[354162839,1740311435178,-500.0,0.0001378,2]
[354162840,1740311435188,-500.0,0.0001378,2]
[354162841,1740311435198,-500.0,0.0001378,2]
[354162842,1740311435208,-500.0,0.0001378,2]
[354162843,1740311435217,-500.0,0.0001378,2]
[354162844,1740311435227,-500.0,0.0001378,2]
[354162845,1740311435237,-500.0,0.0001378,2]
[354162846,1740311435246,-500.0,0.0001378,2]
[354162847,1740311435256,-500.0,0.0001378,2]
[354162848,1740311435266,-500.0,0.0001378,2]
[354162849,1740311435275,-500.0,0.0001378,2]
[354162850,1740311435284,-500.0,0.0001378,2]
[354162851,1740311435293,-500.0,0.0001378,2]
[354162852,1740311435303,-500.0,0.0001378,2]
[354162853,1740311435312,-500.0,0.0001378,2]
[354162854,1740311435321,-500.0,0.0001378,2]
[354162855,1740311435331,-250.96725612,0.0001378,2]
[354162856,1740311435340,-500.0,0.0001378,2]
[354162857,1740311435350,-500.0,0.0001378,2]
[354162858,1740311435359,-500.0,0.0001378,2]
[354162859,1740311435370,-500.0,0.0001378,2]
[354162860,1740311435379,-500.0,0.0001378,2]
[354162861,1740311435389,-500.0,0.0001378,2]
[354162862,1740311435399,-500.0,0.0001378,2]
[354162863,1740311435408,-500.0,0.0001378,2]
[354162864,1740311435418,-500.0,0.0001378,2]
[354162865,1740311435428,-500.0,0.0001378,2]
[354162866,1740311435438,-501.62519235,0.0001378,2]
[354162867,1740311435448,-500.0,0.0001378,2]
[354162868,1740311435458,-500.0,0.0001378,2]
[354162869,1740311435468,-500.0,0.0001378,2]
[354162870,1740311435478,-500.0,0.0001378,2]
[354162871,1740311435488,-500.0,0.0001378,2]
[354162872,1740311435498,-500.0,0.0001378,2]
[354162873,1740311435507,-697.04,0.0001378,2]
[354162874,1740311435518,-500.0,0.0001378,2]
[354162875,1740311435528,-478.01511644,0.0001378,2]
[354162876,1740311435537,-500.0,0.0001378,2]
[354162877,1740311435547,-500.0,0.0001378,2]
[354162878,1740311435556,-500.0,0.0001378,2]
[354162879,1740311435566,-500.0,0.0001378,2]
[354162880,1740311435576,-500.0,0.0001378,2]
[354162881,1740311435585,-500.0,0.0001378,2]
[354162882,1740311435595,-561.51,0.0001378,2]
[354162883,1740311435604,-500.0,0.0001378,2]
[354162884,1740311435613,-500.0,0.0001378,2]
[354162885,1740311435624,-1251.12,0.0001378,2]
[354162886,1740311435634,-500.0,0.0001378,2]
[354162887,1740311435644,-500.0,0.0001378,2]
[354162888,1740311435654,-500.0,0.0001378,2]
[354162889,1740311435663,-500.0,0.0001378,2]
[354162890,1740311435673,-500.0,0.0001378,2]
[354162891,1740311435686,-500.0,0.0001378,2]
[354162892,1740311435700,-500.0,0.0001378,2]
[354162893,1740311435713,-500.0,0.0001378,2]
[354162894,1740311435726,-500.0,0.0001378,2]
[354162895,1740311435739,-500.0,0.0001378,2]
[354162896,1740311435750,-500.0,0.0001378,2]
[354162897,1740311435760,-503.60064763,0.0001378,2]
[354162898,1740311435773,-500.0,0.0001378,2]
[354162899,1740311435785,-500.0,0.0001378,2]
[354162900,1740311435797,-500.0,0.0001378,2]
[354162901,1740311435810,-500.0,0.0001378,2]
[354162902,1740311435822,-500.0,0.0001378,2]
[354162903,1740311435835,-503.93226295,0.0001378,2]
[354162904,1740311435847,-500.0,0.0001378,2]
[354162905,1740311435860,-503.301791,0.0001378,2]
[354162906,1740311435873,-500.0,0.0001378,2]
[354162907,1740311435886,-500.0,0.0001378,2]
[354162908,1740311435899,-503.06915587,0.0001378,2]
[354162909,1740311435911,-500.0,0.0001378,2]
[354162910,1740311435924,-500.0,0.0001378,2]
[354162911,1740311435936,-500.0,0.0001378,2]
[354162912,1740311435950,-524.96,0.0001378,2]
[354162913,1740311435962,-151.0,0.0001378,2]
[354162914,1740311435977,-500.0,0.0001378,2]
[354162915,1740311435990,-500.0,0.0001378,2]
[354162916,1740311436002,-500.0,0.0001378,2]
[354162917,1740311436014,-500.0,0.0001378,2]
[354162918,1740311436025,-500.0,0.0001378,2]
[354162919,1740311436035,-500.0,0.0001378,2]
[354162920,1740311436048,-500.0,0.0001378,2]
[354162921,1740311436059,-500.0,0.0001378,2]
[354162922,1740311436072,-500.0,0.0001378,2]
[354162923,1740311436085,-3111.36,0.0001378,2]
[354162924,1740311436097,-506.41325683,0.0001378,2]
[354162925,1740311436111,-500.0,0.0001378,2]
[354162926,1740311436123,-1008.33,0.0001378,2]
[354162927,1740311436136,-500.0,0.0001378,2]
[354162928,1740311436147,-500.0,0.0001378,2]
[354162929,1740311436160,-500.0,0.0001378,2]
[354162930,1740311436172,-500.0,0.0001378,2]
[354162931,1740311436182,-4480.12,0.0001378,2]
[354162932,1740311436193,-500.0,0.0001378,2]
[354162933,1740311436203,-500.0,0.0001378,2]
[354162934,1740311436214,-500.0,0.0001378,2]
[354162935,1740311436225,-500.0,0.0001378,2]
[354162936,1740311436237,-494.65173746,0.0001378,2]
[354162937,1740311436250,-500.0,0.0001378,2]
[354162938,1740311436262,-500.0,0.0001378,2]
[354162939,1740311436273,-500.0,0.0001378,2]
[354162940,1740311436283,-500.0,0.0001378,2]
[354162941,1740311436294,-151.0,0.0001378,2]
[354162942,1740311436305,-151.0,0.0001378,2]
[354162943,1740311436315,-151.0,0.0001378,2]
[354162944,1740311436328,-151.0,0.0001378,2]
[354162945,1740311436339,-604.73,0.0001378,2]
[354162946,1740311436349,-500.0,0.0001378,2]
[354162947,1740311436361,-1835.67,0.0001378,2]
[354162948,1740311436371,-500.0,0.0001378,2]
[354162949,1740311436382,-500.0,0.0001378,2]
[354162950,1740311436393,-1150.91,0.0001378,2]
[354162951,1740311436403,-500.0,0.0001378,2]
[354162952,1740311436414,-503.12290678,0.0001378,2]
[354162953,1740311436425,-389.19253552,0.0001386,2]
[354162954,1740311436437,-500.0,0.00013863,2]
[354162955,1740311436448,-500.0,0.00013863,2]
[354162956,1740311436459,-500.0,0.00013863,2]
[354162957,1740311436470,-500.0,0.00013863,2]
[354162958,1740311436482,-500.0,0.00013863,2]
[354162959,1740311436492,-500.0,0.00013863,2]
[354162960,1740311436503,-500.0,0.00013863,2]
[354162961,1740311436514,-500.0,0.00013863,2]
[354162962,1740311436524,-500.0,0.00013863,2]
[354162963,1740311436536,-500.0,0.00013863,2]
[354162964,1740311436548,-500.0,0.00013863,2]
[354162965,1740311436559,-500.0,0.00013863,2]
[354162966,1740311436570,-500.0,0.00013863,2]
[354162967,1740311436580,-500.0,0.00013863,2]
[354162968,1740311436592,-500.0,0.00013863,2]
[354162969,1740311436603,-500.0,0.00013863,2]
[354162970,1740311436613,-500.0,0.00013863,2]
[354162971,1740311436627,-500.0,0.00013863,2]
[354162972,1740311436638,-500.0,0.00013863,2]
[354162973,1740311436649,-500.0,0.00013863,2]
[354162974,1740311436661,-500.0,0.00013863,2]
[354162975,1740311436672,-500.0,0.00013863,2]
[354162976,1740311436683,-500.0,0.00013863,2]
[354162977,1740311436696,-500.0,0.00013863,2]
[354162978,1740311436713,-500.0,0.00013863,2]
[354162979,1740311436724,-500.0,0.00013863,2]
[354162980,1740311436735,-500.0,0.00013863,2]
[354162981,1740311436746,-500.0,0.00013863,2]
[354162982,1740311436757,-500.0,0.00013863,2]
[354162983,1740311436767,-500.0,0.00013863,2]
[354162984,1740311436778,-500.0,0.00013863,2]
[354162985,1740311436789,-500.0,0.00013863,2]